[Event "Fagernes Chess GM-Swiss 2024"]
[Site "Fagernes"]
[Date "2024.03.29"]
[Round "7.15"]
[White "Lindh, Fredrik"]
[Black "Sorensen, Hampus"]
[Result "0-1"]
[ECO "B90"]
[WhiteElo "2256"]
[BlackElo "2428"]
[Annotator "TA"]
[PlyCount "98"]
[EventDate "2024.03.25"]
[EventType "swiss"]
[EventCountry "NOR"]
[SourceTitle "playchess.com"]
[Source "ChessBase"]
[SourceQuality "1"]
[TimeControl "40/6000+30:2400+30"]

{[%evp 20,98,25,15,18,20,24,16,26,29,35,20,36,11,47,29,33,32,41,22,38,31,83,25,81,83,85,83,78,64,70,62,62,48,67,0,0,0,0,-17,-17,-16,-28,-140,-145,-140,-139,-139,-147,-160,-150,-144,-113,-119,-34,-43,-38,-34,-24,-113,-98,-102,-113,-115,-105,-214,-186,-222,-147,-148,-148,-255,-252,-255,-243,-345,-334,-328,-316,-350,-343]} 1. e4 {[%emt 0:00:03]} c5 {[%emt 0:00:19]} 2. Nf3 {[%emt 0:00:06]} d6 {[%emt 0:00:09]} 3. d4 {[%emt 0:00:06]} cxd4 {[%emt 0:00:07]} 4. Nxd4 {[%emt 0:00:04]} Nf6 {[%emt 0:00:07]} 5. Nc3 {[%emt 0:00:05]} a6 {[%emt 0:00:05]} 6. Be3 {[%emt 0:00:06]} e5 {[%emt 0:00:16]} 7. Nb3 {[%emt 0:00:05]} Be7 {[%emt 0:00:08]} 8. f3 {[%emt 0:00:06]} Be6 {[%emt 0:00:12]} 9. Qd2 {[%emt 0:00:08]} h5 {[%emt 0:00:07]} 10. Nd5 {[%emt 0:00:10]} Nxd5 {[%emt 0:02:39]} 11. exd5 {[%emt 0:00:27]} Bf5 {[%emt 0:00:07]} 12. Be2 {[%emt 0:01:28]} a5 {[%emt 0:03:06]} 13. a4 {[%emt 0:03:11]} Nd7 {[%emt 0:04:55] The position is equal.} 14. O-O {[%emt 0:02:39]} O-O {[%emt 0:00:50]} 15. Bb5 {[%emt 0:17:51]} Nf6 {[%emt 0:16:19]} 16. Rad1 {[%emt 0:11:26]} Bg6 {[%emt 0:03:59]} 17. c3 {[%emt 0:14:31]} h4 {[%emt 0:16:45]} 18. Qf2 {[%emt 0:05:38][%cal Oe3b6]} Qc8 {[%emt 0:05:35]} 19. Qe2 {[%emt 0:26:26]} (19. Qxh4 Bc2 20. Qc4 Qxc4 21. Bxc4 Rfc8 $11) 19... h3 {[%emt 0:06:47]} 20. g3 {[%emt 0:02:20]} e4 {[%emt 0:00:27]} (20... Bd8 $14) 21. Bg5 {[%emt 0:01:17]} (21. Bd4 $16) 21... Bd8 {[%emt 0:13:15] [#]} (21... Qf5 $11 22. Bh4 Qh5) 22. Bxf6 $1 $16 {[%emt 0:03:08]} exf3 {[%emt 0:00:32]} 23. Qxf3 {[%emt 0:01:04]} Bxf6 {[%emt 0:00:07]} 24. Nd4 {[%emt 0:01:05] Inhibits Bc2.} Qc5 {[%emt 0:06:43][%cal Oa8e8]} 25. Kh1 {[%emt 0:00:06]} Rac8 {[%emt 0:02:41]} 26. Bd7 {[%emt 0:08:10]} Rcd8 {[%emt 0:00:22]} 27. Bf5 {[%emt 0:01:02]} (27. Bxh3 $14 Bxd4 28. Rxd4) 27... Bxd4 $11 {[%emt 0:04:00]} 28. Rxd4 {[%emt 0:00:05]} Rde8 {[%emt 0:02:36]} 29. g4 {[%emt 0:02:18]} Qb6 {[%emt 0:03:08]} 30. Qxh3 {[%emt 0:06:05]} Qxb2 {[%emt 0:00:59]} 31. g5 {[%emt 0:01:21]} (31. Qg3 $11) 31... Bxf5 $17 {[%emt 0:02:46]} 32. Qxf5 {[%emt 0:00:04] White threatens Rh4 and mate.} Qxc3 {[%emt 0:08:27]} ({Much worse is} 32... Re5 $6 33. Qh3 Qb3 (33... Rxg5 $2 {perishes.} 34. Rh4 $18) 34. g6 fxg6 35. Rxf8+ Kxf8 36. Qc8+ Ke7 37. Qc7+ Ke8 38. Qc8+ Ke7 39. Qc7+ Ke8 40. Qc8+ Ke7 $11) 33. Rh4 {[%emt 0:00:06]} g6 {[%emt 0:00:04]} 34. Qf6 {[%emt 0:00:03]} Qxf6 {[%emt 0:00:06]} 35. Rxf6 {[%emt 0:00:05][%cal Oh1g2][%mdl 4096] Endgame. KRR-KRR} Re1+ {[%emt 0:03:15]} 36. Kg2 {[%emt 0:00:04][%cal Oh4f4] [#]} Re5 {[%emt 0:00:03]} (36... Rd8 $1 $17 {And now ...Re5 would win.} 37. Rd4 Re3) 37. Rxd6 $15 {[%emt 0:00:06]} Rxg5+ {[%emt 0:00:05]} 38. Kf3 {[%emt 0:01:02]} Rc8 {[%emt 0:00:40] Threatens to win with ...Rc3+.} 39. Rd4 {[%emt 0:02:51]} (39. Rf4 $11 {remains equal.}) 39... Rc3+ $17 {[%emt 0:02:38]} 40. Kf2 {[%emt 0:00:12]} Rc2+ {[%emt 0:02:08]} 41. Kf3 {[%emt 0:05:20]} Rxh2 {[%emt 0:26:19]} 42. Rd8+ {[%emt 0:02:25]} (42. Rd7 $17) 42... Kg7 $19 {[%emt 0:00:05]} 43. d6 {[%emt 0:01:15] d7 is the strong threat.} Rf5+ {[%emt 0:01:06]} 44. Ke3 {[%emt 0:13:51]} Re5+ {[%emt 0:00:29]} 45. Kf4 {[%emt 0:17:30]} (45. Kd3 $17 Ree2 46. Rd5) 45... Kf6 {[%emt 0:05:51] ...Rh4+ would now be deadly.} 46. Kf3 {[%emt 0:04:03]} Rhh5 {[%emt 0:02:06]} 47. d7 {[%emt 0:01:19]} (47. Rd7 {keeps fighting.}) 47... Rhf5+ {[%emt 0:00:26] Black has a decisive advantage.} 48. Kg4 {[%emt 0:00:56]} Rd5 {[%emt 0:00:55]} 49. Rc4 {[%emt 0:00:39]} Rd1 {[%emt 0:02:31] Weighted Error Value: White=0.28 (precise) /Black=0.13 (very precise) .  Mistake:       	White=7     	Black=3      Inaccurate:     	---       	Black=2      OK:         	White=6     	Black=13     Best:        	White=5     	Black=7      Strong:       	White=1     	---} 0-1

[Event "Fagernes Chess GM-Swiss 2024"]
[Site "Fagernes"]
[Date "2024.03.29"]
[Round "7.16"]
[White "Johansson, Linus"]
[Black "Kistrup, Nicolai"]
[Result "1-0"]
[ECO "D49"]
[WhiteElo "2427"]
[BlackElo "2324"]
[Annotator "TA"]
[PlyCount "121"]
[EventDate "2024.03.25"]
[EventType "swiss"]
[EventCountry "NOR"]
[SourceTitle "playchess.com"]
[Source "ChessBase"]
[SourceQuality "1"]
[TimeControl "40/6000+30:2400+30"]

{[%evp 27,121,1,23,0,51,0,0,-33,-16,0,0,0,55,43,52,42,49,37,43,35,108,108,108,64,102,0,0,0,114,7,7,12,9,0,0,0,23,18,30,33,54,64,91,57,79,89,102,0,87,0,89,0,85,75,95,75,138,141,114,114,171,22,59,75,134,126,131,0,0,0,132,0,123,123,108,108,159,156,194,135,220,205,2879,833,4768,2480,3611,1385,29948,29950,29953,29956,29976,29977,29975,29966]} 1. d4 {[%emt 1:00:38]} d5 {[%emt 0:00:04]} 2. c4 {[%emt 0:00:04]} c6 {[%emt 0:00:03]} 3. Nc3 {[%emt 0:00:05]} Nf6 {[%emt 0:00:04]} 4. e3 {[%emt 0:00:05]} e6 {[%emt 0:00:14]} 5. Nf3 {[%emt 0:00:04]} Nbd7 {[%emt 0:00:03]} 6. Bd3 {[%emt 0:00:06]} dxc4 {[%emt 0:00:21]} 7. Bxc4 {[%emt 0:00:04]} b5 {[%emt 0:00:05]} 8. Bd3 {[%emt 0:00:03]} a6 {[%emt 0:00:51][%cal Ba7a6,Ba6b5,Bb5b4][%mdl 32]} 9. e4 {[%emt 0:00:29]} c5 {[%emt 0:00:05]} 10. e5 {[%emt 0:00:03]} cxd4 {[%emt 0:00:12]} 11. Nxb5 {[%emt 0:00:07]} axb5 {[%emt 0:00:10]} 12. exf6 {[%emt 0:00:05]} gxf6 {[%emt 0:00:05]} 13. O-O {[%emt 0:01:26]} Qb6 {[%emt 0:00:05]} 14. Qe2 {[%emt 0:00:16]} b4 $1 {[%emt 0:00:05]} 15. Bf4 {[%emt 0:03:51]} Bd6 {[%emt 0:02:56]} (15... Bc5 $11) 16. Bg3 {[%emt 0:07:50]} ({Better is} 16. Bxd6 $14 Qxd6 17. Rfd1 (17. Qe4 Rb8 $11)) 16... Bb7 $11 {[%emt 0:17:25]} 17. a4 {[%emt 0:04:27][%cal Oa4a5] The position is equal.} Bxg3 {[%emt 0:12:28]} 18. hxg3 {[%emt 0:00:08]} O-O {[%emt 0:07:12]} 19. Rfd1 {[%emt 0:10:02]} f5 {[%emt 0:07:27] Against Be4} (19... Rfd8 $11) 20. Bb5 $14 {[%emt 0:06:26]} Bxf3 {[%emt 0:17:31]} 21. Qxf3 {[%emt 0:20:05]} Nf6 {[%emt 0:02:43]} 22. Qf4 {[%emt 0:03:17][%mdl 1024] Dodges Qd6. White has compensation.} Ne4 {[%emt 0:02:50] Inhibits Qg5+.} 23. Bd3 {[%emt 0:02:31]} Nc5 {[%emt 0:06:40]} (23... Rfd8 $14) 24. Qg5+ $16 {[%emt 0:05:37]} Kh8 {[%emt 0:00:05][%cal Ob6d8]} 25. Qf6+ {[%emt 0:00:07]} Kg8 {[%emt 0:00:03]} 26. Qg5+ {[%emt 0:00:09]} (26. g4 $16 Qd8 (26... Rxa4 $2 27. Rxa4 Nxa4 28. gxf5 $18) (26... fxg4 27. Qxd4 h5 28. Qe3 $16) 27. Qh6) 26... Kh8 $11 {[%emt 0:00:04][%cal Of7f6]} 27. Qf6+ {[%emt 0:00:05]} (27. a5 $11 Qd8 28. Qh6) 27... Kg8 $16 {[%emt 0:00:03]} 28. Bxf5 {[%emt 0:01:09]} (28. g4 $16 Qd8 (28... Rxa4 $2 29. gxf5 Rxa1 30. Rxa1 $18) (28... fxg4 29. Qg5+ Kh8 30. a5 $18) 29. Qh6) 28... Qd8 $11 {[%emt 0:03:32]} 29. Qe5 {[%emt 0:09:36] Some like it hot} (29. Qxd4 Qxd4 (29... Nxa4 $2 30. Qg4+ Kh8 31. Rxd8 $18) 30. Rxd4 exf5 $15) 29... Nb3 $132 {[%emt 0:00:32][%cal Oa8a5][%mdl 2048] [#] ...Ra5! is the strong threat. Black has counterplay} 30. Bd3 {[%emt 0:04:32][%cal Oe5e4]} (30. Be4 $2 Ra5 31. Qf4 f5 $17 (31... Nxa1 $2 32. Rxa1 d3 33. Qe3 $19)) 30... Nxa1 {[%emt 0:06:31]} 31. Qe4 {[%emt 0:01:18][%csl Gd3][%cal Re4h7]} f5 {[%emt 0:01:19][%cal Bf7f5,Bf5f4][%mdl 32]} 32. Qxe6+ {[%emt 0:00:07]} Kh8 {[%emt 0:02:46]} (32... Kg7 {keeps more tension.} 33. Rxa1 Ra5 34. Bb5 Ra7) 33. Rxa1 {[%emt 0:02:22][%cal Oe6e1] Black is weak on the light squares} Qf6 {[%emt 0:05:14]} 34. Qd5 {[%emt 0:14:24]} Ra7 {[%emt 0:02:58]} 35. Qc5 {[%emt 0:05:25]} Rg7 {[%emt 0:02:01] [#]} 36. Re1 $1 {[%emt 0:06:15][%cal Oe1e5]} (36. Qxb4 f4 37. Rf1 Rfg8 $11) 36... f4 {[%emt 0:00:47]} 37. Re5 {[%emt 0:00:18] White has more active pieces.} (37. Qxb4 $2 fxg3 38. f3 Rc8 $19) (37. Re6 $1 $16 {[%cal Re6f6]} Qf7 38. g4 Qxe6 39. Qxf8+ Rg8 40. Qxb4 Qxg4 41. Qxd4+ Qg7 42. Qe4 (42. Qxf4 $2 Qxg2#)) 37... Qd8 {[%emt 0:02:56]} (37... fxg3 $2 38. Rf5 gxf2+ 39. Kf1 $18) (37... Rfg8 $11) 38. Rd5 {[%emt 0:04:04]} (38. Qxb4 $6 fxg3 39. fxg3 Rxg3 $11) (38. g4 $16) 38... Qe8 {[%emt 0:00:50]} (38... Qe7 $11 {keeps the balance.} 39. gxf4 Rxf4 40. Qxe7 Rxe7) 39. Re5 {[%emt 0:00:09]} (39. Qxb4 $2 fxg3 40. Rxd4 (40. fxg3 $2 Qe3+ 41. Kh1 Rc8 $19) 40... Rxf2 $19 (40... gxf2+ $2 41. Kf1 $19)) 39... Qd8 {[%emt 0:03:20]} 40. gxf4 {[%emt 0:00:59]} ({Much weaker is} 40. Qxb4 $6 fxg3 41. fxg3 Rxg3 $11) 40... Rxf4 {[%emt 0:05:21]} 41. Re6 {[%emt 0:15:12][%cal Oc5e5]} Rf6 {[%emt 0:18:17]} (41... Qf8 $142 42. Qxf8+ Rxf8) 42. Rxf6 $16 {[%emt 0:05:22]} Qxf6 {[%emt 0:00:54]} 43. Qxb4 {[%emt 0:00:56][%mdl 4096] Endgame. KQR-KQB} Qg5 {[%emt 0:03:09]} (43... Qf4 $16) 44. Bf1 {[%emt 0:01:11]} (44. Qxd4 $2 Qxg2#) ({White should play} 44. g3 $18) 44... d3 {[%emt 0:02:12]} 45. Qd4 $1 {[%emt 0:01:55]} Qc1 {[%emt 0:07:45]} ({Black should try} 45... d2) 46. Qd8+ {[%emt 0:01:36]} (46. Qxd3 Qxb2 47. a5 Qe5 $16) 46... Rg8 {[%emt 0:00:05]} 47. Qf6+ {[%emt 0:00:06]} (47. Qxd3 $16 {Strongly threatening Qd4+.} Qxb2 48. a5) 47... Rg7 $11 {[%emt 0:00:05]} 48. Qd8+ {[%emt 0:00:12]} (48. Qd4 $11) 48... Rg8 $16 {[%emt 0:00:04]} 49. Qd4+ {[%emt 0:00:05]} Rg7 {[%emt 0:00:06]} 50. Qxd3 {[%emt 0:00:06] Hoping for Qd8+.} Qxb2 {[%emt 0:00:18]} 51. a5 {[%emt 0:00:22] Threatens to win with Qe3.} Rf7 {[%emt 0:05:49]} (51... Qe5 $142) 52. Qe3 {[%emt 0:00:22] a6 would now be deadly.} Qa1 {[%emt 0:05:04]} 53. Qc5 {[%emt 0:01:01]} (53. a6 $18) 53... Kg8 {[%emt 0:02:18]} (53... Kg7 $16 54. g3 h6) 54. g3 {[%emt 0:00:33]} Rf8 $2 {[%emt 0:01:10]} (54... Kg7 55. a6 Rd7 56. Qg5+ Kf8 57. Qh6+ Ke8) 55. Kg2 $18 {[%emt 0:00:41] Bc4+ would kill now.} Re8 {[%emt 0:01:40]} 56. Bc4+ {[%emt 0:01:55]} Kh8 {[%emt 0:00:13]} 57. a6 {[%emt 0:00:28][%cal Ba5a6,Ba6a7][%mdl 32] Threatening mate with Bd5.} Qg7 {[%emt 0:01:22]} 58. Bd5 {[%emt 0:02:00] White mates.} Qa1 {[%emt 0:00:32]} 59. a7 {[%emt 0:01:07]} Rd8 {[%emt 0:00:26]} 60. Qe7 {[%emt 0:00:51]} ({Not} 60. a8=B Rxa8 61. Bxa8 Qxa8+ 62. Kh3 h6 $14) 60... Rc8 {[%emt 0:00:32]} 61. Be4 {[%emt 0:00:44] Weighted Error Value: White=0.33/Black=0.43.  Mistake:       	White=10    	Black=11     Inaccurate:     	White=2     	Black=7      OK:         	White=11    	Black=6      Best:        	White=5     	Black=3      Strong:       	White=2     	---} 1-0

[Event "Fagernes Chess GM-Swiss 2024"]
[Site "Fagernes"]
[Date "2024.03.29"]
[Round "7.17"]
[White "Celik, Hasan Huseyin"]
[Black "Shehzad, Shazil"]
[Result "1/2-1/2"]
[ECO "A20"]
[WhiteElo "2417"]
[BlackElo "2301"]
[Annotator "TA"]
[PlyCount "111"]
[EventDate "2024.03.25"]
[EventType "swiss"]
[EventCountry "NOR"]
[SourceTitle "playchess.com"]
[Source "ChessBase"]
[SourceQuality "1"]
[TimeControl "40/6000+30:2400+30"]

{[%evp 24,111,42,40,45,39,47,52,56,56,54,52,46,55,59,43,41,42,54,73,68,62,57,67,53,59,93,74,74,54,63,28,27,31,55,48,39,24,55,41,85,94,85,59,71,70,101,99,139,145,121,40,53,52,48,16,51,7,5,7,10,0,0,0,0,0,0,0,0,0,0,0,0,-12,-18,-36,-39,-41,0,0,0,0,0,0,0,0,0,0,0,0]} 1. c4 {[%emt 0:06:46]} e5 {[%emt 0:00:14]} 2. g3 {[%emt 0:00:10]} c6 {[%emt 0:00:10]} 3. Nf3 {[%emt 0:00:07]} e4 {[%emt 0:00:11]} 4. Nd4 {[%emt 0:00:07]} d5 {[%emt 0:00:28]} 5. cxd5 {[%emt 0:00:10]} Qxd5 {[%emt 0:00:04]} 6. Nc2 {[%emt 0:00:15] A20: English Opening: 1...e5.} Nf6 {[%emt 0:00:06]} 7. Nc3 {[%emt 0:00:13]} Qe5 {[%emt 0:00:04]} 8. Bg2 {[%emt 0:00:41]} Na6 {[%emt 0:00:05]} 9. a3 {[%emt 0:00:53]} Nc5 {[%emt 0:15:11]} 10. b4 {[%emt 0:00:20]} Nb3 {[%emt 0:00:24]} 11. Rb1 {[%emt 0:00:09]} Nxc1 {[%emt 0:00:30]} 12. Qxc1 {[%emt 0:00:01]} Bf5 {[%emt 0:03:55]} 13. Ne3 {[%emt 0:08:21]} Bg6 {[%emt 0:00:38]} 14. b5 $1 {[%emt 0:05:26]} Be7 {[%emt 0:09:14]} 15. bxc6 $1 {[%emt 0:03:25]} bxc6 {[%emt 0:00:18]} 16. Ncd5 {[%emt 0:09:28]} O-O {[%emt 0:01:32]} 17. Qc3 {[%emt 0:03:30]} (17. Qxc6 Nxd5 18. Qxd5 (18. Nxd5 Bxa3 19. O-O Rfc8 $11) 18... Qxd5 19. Nxd5 Bxa3 $11) 17... Qd6 $1 {[%emt 0:13:13]} 18. Nxe7+ {[%emt 0:02:26]} Qxe7 {[%emt 0:00:40]} 19. O-O {[%emt 0:00:35]} Rfd8 {[%emt 0:07:29]} 20. Rfc1 {[%emt 0:04:56]} h5 {[%emt 0:08:15]} 21. h4 {[%emt 0:07:01]} Kh7 $146 {[%emt 0:07:32]} ({Predecessor:} 21... Rab8 22. Rxb8 Rxb8 23. Bh3 Nd5 24. Qxc6 Nxe3 25. dxe3 Qxa3 26. Kg2 Qb2 27. Qc7 Kh7 28. Qxa7 Rb5 29. Rc5 {½-½ Gumularz,S (2558)-Cheparinov,I (2661) EU-ch 23rd Vrnjacka Banja 2023 (3)}) 22. a4 {[%emt 0:07:19]} c5 {[%emt 0:16:11]} 23. Qa5 {[%emt 0:10:54]} ({Don't do} 23. Qxc5 $6 Qxc5 24. Rxc5 Rxd2 $18) 23... Qd7 {[%emt 0:03:38]} 24. Rc2 {[%emt 0:04:26]} Rac8 {[%emt 0:09:59]} 25. Rbc1 {[%emt 0:05:48]} ({Much weaker is} 25. Rxc5 Rxc5 26. Qxc5 Qxa4 $11) 25... Rb8 {[%emt 0:01:40]} 26. Bf1 {[%emt 0:06:02]} Rb4 {[%emt 0:02:08]} 27. Ra2 {[%emt 0:03:05]} ({Don't play} 27. Rxc5 Rxa4 28. Qc3 Qxd2 $11) 27... Rc8 {[%emt 0:01:35]} 28. Raa1 {[%emt 0:13:30]} Qc7 {[%emt 0:01:43]} 29. Qxc7 {[%emt 0:00:34]} Rxc7 {[%emt 0:00:01]} 30. Bh3 {[%emt 0:00:28]} Rc6 {[%emt 0:01:05]} 31. a5 {[%emt 0:01:19]} Ng4 {[%emt 0:04:08]} 32. Bxg4 {[%emt 0:02:37]} hxg4 {[%emt 0:00:05]} 33. Kf1 {[%emt 0:00:22]} f6 {[%emt 0:01:43]} 34. Nxg4 {[%emt 0:01:32]} Bf7 {[%emt 0:00:39]} 35. Ne3 {[%emt 0:00:17]} Bb3 {[%emt 0:01:15]} 36. Rab1 {[%emt 0:01:56]} c4 {[%emt 0:00:33]} 37. Nd5 {[%emt 0:01:50]} (37. Rc3 $16) 37... Rb5 $14 {[%emt 0:01:30]} 38. Nc3 {[%emt 0:00:06]} Re5 {[%emt 0:00:39]} 39. Ra1 {[%emt 0:01:15]} f5 {[%emt 0:00:23]} 40. e3 {[%emt 0:01:19]} Ra6 {[%emt 0:00:28]} 41. Ke2 {[%emt 0:09:45]} Rexa5 {[%emt 0:02:19]} 42. Rab1 {[%emt 0:01:34]} Rd6 {[%emt 0:00:49]} 43. g4 {[%emt 0:03:49]} Rh6 {[%emt 0:05:48]} 44. gxf5 {[%emt 0:03:24]} Re5 {[%emt 0:09:33]} 45. Rg1 {[%emt 0:06:50]} Rxh4 {[%emt 0:02:21]} 46. Rg5 {[%emt 0:00:01]} Bc2 {[%emt 0:02:59]} 47. Rbg1 {[%emt 0:00:10]} Bd3+ {[%emt 0:00:29]} 48. Kd1 {[%emt 0:03:03]} Re7 {[%emt 0:01:23]} 49. Rg6 {[%emt 0:01:27]} Rh5 {[%emt 0:03:07]} 50. R6g5 {[%emt 0:03:13]} Rxg5 {[%emt 0:03:50]} 51. Rxg5 {[%emt 0:00:02]} Re5 {[%emt 0:04:02]} 52. Kc1 {[%emt 0:04:13]} Kh6 {[%emt 0:03:30]} 53. Rg6+ {[%emt 0:00:07]} Kh7 {[%emt 0:01:23]} 54. Rg5 {[%emt 0:01:32]} Kh6 {[%emt 0:00:13]} 55. Rg6+ {[%emt 0:00:06]} Kh7 {[%emt 0:00:10]} 56. Rg5 {[%emt 0:01:06]} 1/2-1/2

[Event "Fagernes Chess GM-Swiss 2024"]
[Site "Fagernes"]
[Date "2024.03.29"]
[Round "7.18"]
[White "Lund, Gunnar"]
[Black "Audi Ameya"]
[Result "0-1"]
[ECO "D30"]
[WhiteElo "2335"]
[BlackElo "2378"]
[Annotator "RC"]
[PlyCount "86"]
[EventDate "2024.03.25"]
[EventType "swiss"]
[EventCountry "NOR"]
[SourceTitle "playchess.com"]
[Source "ChessBase"]
[SourceQuality "1"]
[TimeControl "40/6000+30:2400+30"]

1. d4 {[%emt 0:00:03]} Nf6 {[%emt 0:00:05]} 2. c4 {[%emt 0:00:28]} e6 {[%emt 0:00:09]} 3. Nf3 {[%emt 0:00:34]} d5 {[%emt 0:00:07]} 4. Bg5 {[%emt 0:01:30]} h6 {[%emt 0:03:18]} 5. Bh4 {[%emt 0:05:00]} g5 {[%emt 0:03:17]} 6. Bg3 {[%emt 0:00:05]} Ne4 {[%emt 0:00:04]} 7. Nfd2 {[%emt 0:16:36]} Bg7 {[%emt 0:14:21]} 8. cxd5 {[%emt 0:13:17]} Nxg3 {[%emt 0:02:10]} 9. hxg3 {[%emt 0:00:05]} exd5 {[%emt 0:00:32]} 10. e3 {[%emt 0:00:24]} c5 {[%emt 0:14:22]} 11. Nb3 {[%emt 0:11:40]} c4 {[%emt 0:11:10]} 12. N3d2 {[%emt 0:02:53]} Nc6 {[%emt 0:00:07]} 13. Be2 {[%emt 0:07:38]} O-O {[%emt 0:02:20]} 14. Nc3 {[%emt 0:00:20]} Rb8 {[%emt 0:03:51]} 15. b3 {[%emt 0:04:04]} b5 {[%emt 0:01:35]} 16. bxc4 {[%emt 0:00:27]} dxc4 {[%emt 0:02:23]} 17. O-O {[%emt 0:01:07]} Bf5 {[%emt 0:06:01]} 18. g4 {[%emt 0:16:25]} Bh7 {[%emt 0:02:55]} 19. Bf3 {[%emt 0:00:17]} Nxd4 {[%emt 0:15:08]} 20. exd4 {[%emt 0:00:28]} Qxd4 {[%emt 0:00:03]} 21. Rc1 {[%emt 0:14:52]} Rbd8 {[%emt 0:01:25]} 22. Nde4 {[%emt 0:00:49]} b4 {[%emt 0:02:23]} 23. Ne2 {[%emt 0:01:38]} Qe5 {[%emt 0:09:07]} 24. Qc2 {[%emt 0:00:04]} h5 {[%emt 0:02:00]} 25. N2g3 {[%emt 0:01:33]} hxg4 {[%emt 0:00:11]} 26. Bxg4 {[%emt 0:00:05]} Rd4 {[%emt 0:04:33]} 27. Rfe1 {[%emt 0:02:24]} Qf4 {[%emt 0:00:13]} 28. Bf3 {[%emt 0:02:44]} g4 {[%emt 0:02:16]} 29. Nh5 {[%emt 0:00:40]} Qh6 {[%emt 0:00:09]} 30. Bxg4 {[%emt 0:00:29]} Bxe4 {[%emt 0:00:23]} 31. Qe2 {[%emt 0:01:32]} Bd3 {[%emt 0:02:32]} 32. Qf3 {[%emt 0:00:01]} f5 {[%emt 0:00:20]} 33. Bh3 {[%emt 0:00:14]} Be4 {[%emt 0:00:13]} 34. Qe2 {[%emt 0:00:35]} c3 {[%emt 0:00:25]} 35. Ng3 {[%emt 0:00:15]} Qb6 {[%emt 0:01:30]} 36. Nxe4 {[%emt 0:01:33]} fxe4 {[%emt 0:00:15]} 37. Qh5 {[%emt 0:00:38]} Rxf2 {[%emt 0:02:08]} 38. Be6+ {[%emt 0:01:32]} Kf8 {[%emt 0:00:03]} 39. Rf1 {[%emt 0:00:01]} Rdd2 {[%emt 0:00:33]} 40. Kh1 {[%emt 0:02:01]} Qxe6 {[%emt 0:01:11]} 41. Qc5+ {[%emt 0:41:18]} Kg8 {[%emt 0:40:08]} 42. Rxf2 {[%emt 0:00:15]} Rxf2 {[%emt 0:00:08]} 43. Qxf2 {[%emt 0:00:10]} Qh6+ {[%emt 0:00:03]} 0-1

[Event "Fagernes Chess GM-Swiss 2024"]
[Site "Fagernes"]
[Date "2024.03.29"]
[Round "7.19"]
[White "Panda Sambit"]
[Black "Kreken, Eivind Grunt"]
[Result "1/2-1/2"]
[ECO "D41"]
[WhiteElo "2377"]
[BlackElo "2215"]
[Annotator "RC"]
[PlyCount "96"]
[EventDate "2024.03.25"]
[EventType "swiss"]
[EventCountry "NOR"]
[SourceTitle "playchess.com"]
[Source "ChessBase"]
[SourceQuality "1"]
[TimeControl "40/6000+30:2400+30"]

1. d4 {[%emt 0:06:27]} d5 {[%emt 0:00:16]} 2. c4 {[%emt 0:00:12]} e6 {[%emt 0:00:34]} 3. Nf3 {[%emt 0:00:18]} Nf6 {[%emt 0:00:52]} 4. Nc3 {[%emt 0:00:58]} c5 {[%emt 0:00:57]} 5. cxd5 {[%emt 0:00:59]} Nxd5 {[%emt 0:02:13]} 6. e4 {[%emt 0:03:32]} Nxc3 {[%emt 0:00:13]} 7. bxc3 {[%emt 0:00:04]} cxd4 {[%emt 0:00:13]} 8. cxd4 {[%emt 0:00:03]} Bb4+ {[%emt 0:00:13]} 9. Bd2 {[%emt 0:00:03]} Bxd2+ {[%emt 0:00:23]} 10. Qxd2 {[%emt 0:00:04]} O-O {[%emt 0:00:53]} 11. h4 {[%emt 0:00:02]} b6 {[%emt 0:03:46]} 12. Rd1 {[%emt 0:02:22]} Bb7 {[%emt 0:12:10]} 13. Bd3 {[%emt 0:00:16]} Nc6 {[%emt 0:03:31]} 14. Qe3 {[%emt 0:00:01]} Rc8 {[%emt 0:17:05]} 15. O-O {[%emt 0:01:34]} Nb4 {[%emt 0:26:06]} 16. Bb1 {[%emt 0:02:59]} Qe7 {[%emt 0:05:21]} 17. Rd2 {[%emt 0:06:12]} h6 {[%emt 0:03:34]} 18. Re1 {[%emt 0:11:37]} Rfe8 {[%emt 0:03:06]} 19. h5 {[%emt 0:08:55]} Nc6 {[%emt 0:09:11]} 20. d5 {[%emt 0:10:13]} exd5 {[%emt 0:01:26]} 21. e5 {[%emt 0:01:30]} Qb4 {[%emt 0:06:58]} 22. Qd3 {[%emt 0:07:08]} Qf4 {[%emt 0:00:34]} 23. Qh7+ {[%emt 0:06:25]} Kf8 {[%emt 0:00:01]} 24. Rxd5 {[%emt 0:03:23]} Rcd8 {[%emt 0:04:10]} 25. Rd6 {[%emt 0:11:46]} Ke7 {[%emt 0:05:48]} 26. Qd3 {[%emt 0:17:43]} Kf8 {[%emt 0:00:48]} 27. Rxd8 {[%emt 0:07:34]} Rxd8 {[%emt 0:00:29]} 28. Qa3+ {[%emt 0:01:18]} Qb4 {[%emt 0:01:41]} 29. Qe3 {[%emt 0:00:29]} Nd4 {[%emt 0:01:32]} 30. Nxd4 {[%emt 0:00:03]} Qxd4 {[%emt 0:00:12]} 31. Qa3+ {[%emt 0:00:34]} Kg8 {[%emt 0:00:32]} 32. e6 {[%emt 0:00:30]} fxe6 {[%emt 0:00:24]} 33. Qxa7 {[%emt 0:01:13]} Rf8 {[%emt 0:00:53]} 34. Rf1 {[%emt 0:00:23]} Bxg2 {[%emt 0:00:40]} 35. Kxg2 {[%emt 0:00:22]} Qg4+ {[%emt 0:00:11]} 36. Kh1 {[%emt 0:00:40]} Qh3+ {[%emt 0:00:42]} 37. Kg1 {[%emt 0:00:01]} Qg4+ {[%emt 0:00:06]} 38. Kh1 {[%emt 0:00:03]} Qxh5+ {[%emt 0:00:10]} 39. Kg1 {[%emt 0:00:29]} Qg4+ {[%emt 0:00:21]} 40. Kh2 {[%emt 0:00:35]} Qh4+ {[%emt 0:00:34]} 41. Kg2 {[%emt 0:40:05]} Qg4+ {[%emt 0:03:42]} 42. Kh2 {[%emt 0:00:00]} Rf3 {[%emt 0:08:30]} 43. Qb8+ {[%emt 0:00:00]} Kf7 {[%emt 0:00:19]} 44. Qc7+ {[%emt 0:00:00]} Kf6 {[%emt 0:01:13]} 45. Qd8+ {[%emt 0:00:00]} Kf7 {[%emt 0:00:24]} 46. Qc7+ {[%emt 0:00:00]} Kf6 {[%emt 0:01:11]} 47. Qd8+ {[%emt 0:00:00]} Kf7 {[%emt 0:00:35]} 48. Qc7+ {[%emt 0:00:00]} Kf6 {[%emt 0:01:07]} 1/2-1/2